[Event "30th Abu Dhabi Festival A-Open 2024"]
[Site "Abu Dhabi"]
[Date "2024.08.15"]
[Round "1.1"]
[White "Shashish Subbiah"]
[Black "Yeremyan, Alen"]
[Result "0-1"]
[ECO "D77"]
[WhiteElo "1837"]
[BlackElo "2279"]
[Annotator "ChessBase"]
[PlyCount "124"]
[EventDate "2024.08.15"]
[EventType "swiss"]
[EventCountry "UAE"]
[SourceTitle "playchess.com"]
[Source "ChessBase"]
[SourceQuality "1"]
[TimeControl "5400+30"]

1. Nf3 {[%emt 0:00:17]} Nf6 {[%emt 0:00:07]} 2. g3 {[%emt 0:00:08]} g6 {[%emt 0:00:17]} 3. Bg2 {[%emt 0:00:12]} Bg7 {[%emt 0:00:15]} 4. O-O {[%emt 0:00:07]} d5 {[%emt 0:01:08]} 5. d4 {[%emt 0:00:28]} O-O {[%emt 0:00:05]} 6. c4 {[%emt 0:00:22]} dxc4 {[%emt 0:00:06]} 7. Qc2 {[%emt 0:04:05]} a6 {[%emt 0:01:48]} 8. Qxc4 {[%emt 0:07:40]} b5 {[%emt 0:02:01]} 9. Qc2 {[%emt 0:01:33]} Bb7 {[%emt 0:00:16]} 10. Nc3 {[%emt 0:05:26]} Nbd7 {[%emt 0:02:11]} 11. Rd1 {[%emt 0:04:42]} Qe8 {[%emt 0:03:19]} 12. Bf4 {[%emt 0:08:09]} Rc8 {[%emt 0:01:22]} 13. Qd2 {[%emt 0:08:05]} c5 {[%emt 0:01:20]} 14. dxc5 {[%emt 0:23:46]} Nxc5 {[%emt 0:01:33]} 15. Ne5 {[%emt 0:04:53]} b4 {[%emt 0:13:35]} 16. Nd5 {[%emt 0:04:22]} Nxd5 {[%emt 0:00:31]} 17. Bxd5 {[%emt 0:00:06]} Bxd5 {[%emt 0:00:07]} 18. Qxd5 {[%emt 0:00:07]} e6 {[%emt 0:01:30]} 19. Qd4 {[%emt 0:05:33]} Qb5 {[%emt 0:04:18]} 20. Rd2 {[%emt 0:09:19]} Na4 {[%emt 0:08:33]} 21. Qd3 {[%emt 0:01:31]} g5 {[%emt 0:03:50]} 22. Qxb5 {[%emt 0:01:59]} axb5 {[%emt 0:00:02]} 23. Nd7 {[%emt 0:00:15]} gxf4 {[%emt 0:00:23]} 24. Nxf8 {[%emt 0:00:20]} Kxf8 {[%emt 0:01:46]} 25. gxf4 {[%emt 0:01:25]} Bxb2 {[%emt 0:03:47]} 26. Rb1 {[%emt 0:00:31]} Bc3 {[%emt 0:01:33]} 27. Rd7 {[%emt 0:01:28]} Nb2 {[%emt 0:01:55]} 28. Rb7 {[%emt 0:00:46]} Ra8 {[%emt 0:01:19]} 29. Rxb5 {[%emt 0:00:08]} Rxa2 {[%emt 0:00:19]} 30. Kg2 {[%emt 0:01:17]} Nc4 {[%emt 0:00:35]} 31. R1xb4 {[%emt 0:00:11]} Bxb4 {[%emt 0:00:05]} 32. Rxb4 {[%emt 0:00:06]} Nd6 {[%emt 0:00:17]} 33. Kf3 {[%emt 0:00:48]} Ra3+ {[%emt 0:00:38]} 34. e3 {[%emt 0:00:09]} Nf5 {[%emt 0:00:14]} 35. Rb7 {[%emt 0:01:46]} Kg7 {[%emt 0:46:55]} 36. Rb1 {[%emt 0:00:55]} Kf6 {[%emt 0:00:00]} 37. Rb4 {[%emt 0:01:50]} Ra1 {[%emt 0:00:00]} 38. Rb2 {[%emt 0:00:32]} Rg1 {[%emt 0:00:00]} 39. Rb5 {[%emt 0:01:52]} Kg6 {[%emt 0:00:00]} 40. Rb8 {[%emt 0:00:55]} Nh4+ {[%emt 0:00:00]} 41. Ke4 {[%emt 0:00:47]} Rh1 {[%emt 0:00:00]} 42. Rg8+ {[%emt 0:00:30]} Kf6 {[%emt 0:00:00]} 43. Rg5 {[%emt 0:01:17]} Rxh2 {[%emt 0:00:00]} 44. f3 {[%emt 0:00:47]} Rd2 {[%emt 0:00:00]} 45. Re5 {[%emt 0:01:00]} Ke7 {[%emt 0:00:00]} 46. f5 {[%emt 0:00:33]} Nxf5 {[%emt 0:00:00]} 47. f4 {[%emt 0:00:14]} Nh4 {[%emt 0:00:00]} 48. f5 {[%emt 0:00:32]} Nxf5 {[%emt 0:00:00]} 49. Kf4 {[%emt 0:00:09]} Rf2+ {[%emt 0:00:00]} 50. Kg4 {[%emt 0:00:12]} Kf6 {[%emt 0:00:00]} 51. Re4 {[%emt 0:00:07]} h5+ {[%emt 0:00:00]} 52. Kh3 {[%emt 0:00:26]} Rf3+ {[%emt 0:00:00]} 53. Kh2 {[%emt 0:00:12]} Rxe3 {[%emt 0:00:00]} 54. Ra4 {[%emt 0:00:13]} h4 {[%emt 0:00:00]} 55. Rg4 {[%emt 0:00:19]} e5 {[%emt 0:00:00]} 56. Ra4 {[%emt 0:00:11]} e4 {[%emt 0:00:00]} 57. Ra6+ {[%emt 0:00:08]} Kg5 {[%emt 0:00:00]} 58. Ra1 {[%emt 0:00:13]} Kg4 {[%emt 0:00:00]} 59. Rg1+ {[%emt 0:00:40]} Ng3 {[%emt 0:00:00]} 60. Rd1 {[%emt 0:00:59]} Re2+ {[%emt 0:00:00]} 61. Kg1 {[%emt 0:00:08]} h3 {[%emt 0:13:00]} 62. Rd3 {[%emt 0:00:29]} h2# {[%emt 0:00:00]} 0-1

[Event "30th Abu Dhabi Festival A-Open 2024"]
[Site "Abu Dhabi"]
[Date "2024.08.15"]
[Round "1.2"]
[White "Diaz Villagran, Robert"]
[Black "Mithilesh Ranjithkumar"]
[Result "1-0"]
[ECO "C02"]
[WhiteElo "2268"]
[BlackElo "1833"]
[Annotator "ChessBase"]
[PlyCount "29"]
[EventDate "2024.08.15"]
[EventType "swiss"]
[EventCountry "UAE"]
[SourceTitle "playchess.com"]
[Source "ChessBase"]
[SourceQuality "1"]
[TimeControl "5400+30"]

1. e4 {[%emt 0:00:31]} e6 {[%emt 0:00:06]} 2. d4 {[%emt 0:03:20]} d5 {[%emt 0:00:17]} 3. e5 {[%emt 0:00:30]} c5 {[%emt 0:00:30]} 4. c3 {[%emt 0:00:30]} Nc6 {[%emt 0:00:30]} 5. Nf3 {[%emt 0:00:30]} Qb6 {[%emt 0:00:30]} 6. a4 {[%emt 0:00:30]} Bd7 {[%emt 0:00:30]} 7. b4 {[%emt 0:00:30]} cxd4 {[%emt 0:00:30]} 8. cxd4 {[%emt 0:00:30]} Rc8 {[%emt 0:00:30]} 9. Be2 {[%emt 0:00:30]} Nge7 {[%emt 0:00:30]} 10. O-O {[%emt 0:00:30]} Nf5 {[%emt 0:00:30]} 11. Be3 {[%emt 0:00:30]} Be7 {[%emt 0:00:30]} 12. Qd3 {[%emt 0:00:30]} f6 {[%emt 0:00:30]} 13. Nbd2 {[%emt 0:00:30]} O-O {[%emt 0:00:30]} 14. exf6 {[%emt 0:00:30]} Bxf6 {[%emt 0:00:30]} 15. Nb3 {[%emt 0:00:30]} 1-0

[Event "30th Abu Dhabi Festival A-Open 2024"]
[Site "Abu Dhabi"]
[Date "2024.08.15"]
[Round "1.3"]
[White "Willenberg, Shane C."]
[Black "Saydaliev, Akobirkhon"]
[Result "1-0"]
[ECO "A08"]
[WhiteElo "1833"]
[BlackElo "2266"]
[Annotator "ChessBase"]
[PlyCount "79"]
[EventDate "2024.08.15"]
[EventType "swiss"]
[EventCountry "UAE"]
[SourceTitle "playchess.com"]
[Source "ChessBase"]
[SourceQuality "1"]
[TimeControl "5400+30"]

1. e4 {[%emt 0:00:02]} e6 {[%emt 0:00:05]} 2. d3 {[%emt 0:00:22]} d5 {[%emt 0:00:02]} 3. Nd2 {[%emt 0:00:15]} c5 {[%emt 0:00:08]} 4. g3 {[%emt 0:00:21]} Nc6 {[%emt 0:00:05]} 5. Bg2 {[%emt 0:00:09]} g6 {[%emt 0:00:05]} 6. Ngf3 {[%emt 0:00:41]} Bg7 {[%emt 0:00:20]} 7. O-O {[%emt 0:01:38]} Nge7 {[%emt 0:00:51]} 8. Re1 {[%emt 0:02:30]} Qc7 {[%emt 0:01:01]} 9. Nf1 {[%emt 0:06:04]} O-O {[%emt 0:01:54]} 10. h4 {[%emt 0:01:27]} h5 {[%emt 0:03:07]} 11. Rb1 {[%emt 0:03:15]} Rd8 {[%emt 0:02:33]} 12. Qe2 {[%emt 0:05:08]} b6 {[%emt 0:02:57]} 13. e5 {[%emt 0:06:56]} Nf5 {[%emt 0:02:22]} 14. c3 {[%emt 0:04:53]} b5 {[%emt 0:01:30]} 15. Bg5 {[%emt 0:04:06]} Rf8 {[%emt 0:02:25]} 16. N1h2 {[%emt 0:02:39]} Nh6 {[%emt 0:01:06]} 17. Bh3 {[%emt 0:07:35]} d4 {[%emt 0:04:03]} 18. cxd4 {[%emt 0:08:55]} Nxd4 {[%emt 0:03:02]} 19. Nxd4 {[%emt 0:00:14]} cxd4 {[%emt 0:00:07]} 20. Rbc1 {[%emt 0:08:14]} Qd7 {[%emt 0:01:40]} 21. Rc5 {[%emt 0:01:23]} Bb7 {[%emt 0:01:34]} 22. Rec1 {[%emt 0:01:32]} Rfc8 {[%emt 0:01:31]} 23. Bg2 {[%emt 0:02:26]} Nf5 {[%emt 0:05:03]} 24. g4 {[%emt 0:06:10]} Bxg2 {[%emt 0:01:59]} 25. Kxg2 {[%emt 0:00:51]} Rxc5 {[%emt 0:00:11]} 26. Rxc5 {[%emt 0:00:24]} hxg4 {[%emt 0:02:10]} 27. Nxg4 {[%emt 0:00:57]} Rc8 {[%emt 0:00:25]} 28. Qc2 {[%emt 0:07:27]} Rxc5 {[%emt 0:04:53]} 29. Qxc5 {[%emt 0:00:03]} Qd5+ {[%emt 0:00:08]} 30. Qxd5 {[%emt 0:00:14]} exd5 {[%emt 0:00:01]} 31. Nf6+ {[%emt 0:04:00]} Bxf6 {[%emt 0:02:20]} 32. Bxf6 {[%emt 0:00:35]} Kh7 {[%emt 0:30:08]} 33. Kf3 {[%emt 0:01:44]} Kh6 {[%emt 0:00:00]} 34. Kg4 {[%emt 0:00:49]} a5 {[%emt 0:02:23]} 35. h5 {[%emt 0:01:36]} b4 {[%emt 0:00:44]} 36. b3 {[%emt 0:00:41]} Kh7 {[%emt 0:00:13]} 37. Kg5 {[%emt 0:00:54]} Nh6 {[%emt 0:00:10]} 38. hxg6+ {[%emt 0:00:26]} fxg6 {[%emt 0:00:01]} 39. e6 {[%emt 0:00:12]} Nf5 {[%emt 0:00:02]} 40. Bd8 {[%emt 0:01:25]} 1-0

[Event "30th Abu Dhabi Festival A-Open 2024"]
[Site "Abu Dhabi"]
[Date "2024.08.15"]
[Round "1.4"]
[White "Aditya Varun Gampa"]
[Black "UMER S.M"]
[Result "1-0"]
[ECO "B40"]
[WhiteElo "2261"]
[BlackElo "1832"]
[Annotator "ChessBase"]
[PlyCount "51"]
[EventDate "2024.08.15"]
[EventType "swiss"]
[EventCountry "UAE"]
[SourceTitle "playchess.com"]
[Source "ChessBase"]
[SourceQuality "1"]
[TimeControl "5400+30"]

1. e4 {[%emt 0:00:04]} c5 {[%emt 0:09:07]} 2. Nf3 {[%emt 0:00:42]} e6 {[%emt 0:00:03]} 3. b3 {[%emt 0:00:16]} Nc6 {[%emt 0:00:10]} 4. Bb2 {[%emt 0:00:26]} Nf6 {[%emt 0:00:34]} 5. e5 {[%emt 0:00:58]} Nd5 {[%emt 0:00:50]} 6. Nc3 {[%emt 0:01:44]} Nxc3 {[%emt 0:00:47]} 7. dxc3 {[%emt 0:00:51]} d6 {[%emt 0:06:07]} 8. Qe2 {[%emt 0:07:56]} dxe5 {[%emt 0:02:26]} 9. Nxe5 {[%emt 0:01:00]} Nxe5 {[%emt 0:02:13]} 10. Qxe5 {[%emt 0:02:27]} Bd7 {[%emt 0:06:13]} 11. O-O-O {[%emt 0:09:05]} Qb8 {[%emt 0:01:51]} 12. Qe3 {[%emt 0:01:17]} Qc7 {[%emt 0:04:03]} 13. c4 {[%emt 0:02:25]} f6 {[%emt 0:09:45]} 14. g3 {[%emt 0:01:36]} Kf7 {[%emt 0:20:15]} 15. Bh3 {[%emt 0:03:29]} Re8 {[%emt 0:03:22]} 16. Rhe1 {[%emt 0:00:21]} h5 {[%emt 0:03:46]} 17. f4 {[%emt 0:02:52]} h4 {[%emt 0:02:24]} 18. Kb1 {[%emt 0:04:03]} Bc8 {[%emt 0:11:14]} 19. g4 {[%emt 0:02:10]} Bd6 {[%emt 0:01:37]} 20. Rf1 {[%emt 0:00:27]} Rd8 {[%emt 0:03:09]} 21. Rde1 {[%emt 0:00:58]} Rhe8 {[%emt 0:02:34]} 22. g5 {[%emt 0:00:35]} f5 {[%emt 0:02:40]} 23. g6+ {[%emt 0:00:32]} Kf8 {[%emt 0:00:45]} 24. Qf3 {[%emt 0:00:44]} Re7 {[%emt 0:02:10]} 25. Qh5 {[%emt 0:01:25]} Ke8 {[%emt 0:00:17]} 26. Rd1 {[%emt 0:00:25]} 1-0

[Event "30th Abu Dhabi Festival A-Open 2024"]
[Site "Abu Dhabi"]
[Date "2024.08.15"]
[Round "1.5"]
[White "Vandan Alankar Sawai"]
[Black "Lad Mandar Pradip"]
[Result "0-1"]
[ECO "B94"]
[WhiteElo "1828"]
[BlackElo "2254"]
[Annotator "ChessBase"]
[PlyCount "56"]
[EventDate "2024.08.15"]
[EventType "swiss"]
[EventCountry "UAE"]
[SourceTitle "playchess.com"]
[Source "ChessBase"]
[SourceQuality "1"]
[TimeControl "5400+30"]

1. e4 {[%emt 0:00:19]} c5 {[%emt 0:00:06]} 2. Nf3 {[%emt 0:00:16]} d6 {[%emt 0:00:15]} 3. d4 {[%emt 0:00:16]} cxd4 {[%emt 0:00:07]} 4. Nxd4 {[%emt 0:00:06]} Nf6 {[%emt 0:00:08]} 5. Nc3 {[%emt 0:00:09]} a6 {[%emt 0:00:03]} 6. Bg5 {[%emt 0:00:38]} Nbd7 {[%emt 0:00:08]} 7. Qe2 {[%emt 0:00:56]} e5 {[%emt 0:00:08]} 8. Nf5 {[%emt 0:02:00]} h6 {[%emt 0:00:05]} 9. Bh4 {[%emt 0:03:04]} g6 {[%emt 0:00:12]} 10. Ne3 {[%emt 0:00:14]} Be7 {[%emt 0:00:05]} 11. O-O-O {[%emt 0:02:35]} b5 {[%emt 0:03:42]} 12. a3 {[%emt 0:02:52]} Bb7 {[%emt 0:00:54]} 13. f3 {[%emt 0:00:27]} Rb8 {[%emt 0:11:53]} 14. g4 {[%emt 0:04:32]} Bc6 {[%emt 0:12:25]} 15. Be1 {[%emt 0:02:42]} a5 {[%emt 0:01:32]} 16. Ncd5 {[%emt 0:01:14]} Nxd5 {[%emt 0:05:00]} 17. exd5 {[%emt 0:05:44]} Ba8 {[%emt 0:00:49]} 18. h4 {[%emt 0:01:09]} b4 {[%emt 0:02:08]} 19. a4 {[%emt 0:07:29]} b3 {[%emt 0:01:30]} 20. Nc4 {[%emt 0:00:10]} O-O {[%emt 0:09:53]} 21. Nxa5 {[%emt 0:02:44]} Nc5 {[%emt 0:04:04]} 22. cxb3 {[%emt 0:02:50]} Qd7 {[%emt 0:04:41]} 23. h5 {[%emt 0:06:57]} Rfc8 {[%emt 0:12:38]} 24. Kb1 {[%emt 0:00:19]} Nxb3 {[%emt 0:05:44]} 25. Nxb3 {[%emt 0:04:45]} Rxb3 {[%emt 0:00:19]} 26. hxg6 {[%emt 0:00:05]} Qxa4 {[%emt 0:00:32]} 27. gxf7+ {[%emt 0:01:54]} Kg7 {[%emt 0:04:43]} 28. f4 {[%emt 0:05:47]} Rxb2+ {[%emt 0:04:11]} 0-1

[Event "30th Abu Dhabi Festival A-Open 2024"]
[Site "Abu Dhabi"]
[Date "2024.08.15"]
[Round "1.6"]
[White "Hamidov, Allahverdi"]
[Black "Tecirli, Musa"]
[Result "1-0"]
[ECO "D52"]
[WhiteElo "2253"]
[BlackElo "1826"]
[Annotator "ChessBase"]
[PlyCount "91"]
[EventDate "2024.08.15"]
[EventType "swiss"]
[EventCountry "UAE"]
[SourceTitle "playchess.com"]
[Source "ChessBase"]
[SourceQuality "1"]
[TimeControl "5400+30"]

1. d4 {[%emt 0:00:15]} d5 {[%emt 0:00:19]} 2. c4 {[%emt 0:00:24]} e6 {[%emt 0:00:08]} 3. Nc3 {[%emt 0:00:16]} Nf6 {[%emt 0:00:15]} 4. Bg5 {[%emt 0:00:09]} c6 {[%emt 0:00:55]} 5. e3 {[%emt 0:00:15]} Nbd7 {[%emt 0:00:49]} 6. Nf3 {[%emt 0:00:11]} Qa5 {[%emt 0:01:19]} 7. Nd2 {[%emt 0:00:41]} dxc4 {[%emt 0:00:22]} 8. Bxf6 {[%emt 0:00:08]} Nxf6 {[%emt 0:00:53]} 9. Nxc4 {[%emt 0:00:05]} Qc7 {[%emt 0:03:55]} 10. g3 {[%emt 0:00:16]} Bd7 {[%emt 0:01:27]} 11. Bg2 {[%emt 0:00:54]} c5 {[%emt 0:00:51]} 12. d5 {[%emt 0:00:57]} exd5 {[%emt 0:00:46]} 13. Nxd5 {[%emt 0:00:23]} Nxd5 {[%emt 0:00:15]} 14. Bxd5 {[%emt 0:00:11]} Bc6 {[%emt 0:01:54]} 15. O-O {[%emt 0:01:31]} Bxd5 {[%emt 0:02:05]} 16. Qxd5 {[%emt 0:00:05]} Rd8 {[%emt 0:00:07]} 17. Qe4+ {[%emt 0:01:48]} Be7 {[%emt 0:07:06]} 18. a4 {[%emt 0:01:10]} O-O {[%emt 0:00:19]} 19. Rad1 {[%emt 0:01:00]} Bf6 {[%emt 0:00:59]} 20. b3 {[%emt 0:01:03]} b6 {[%emt 0:01:34]} 21. Kg2 {[%emt 0:05:11]} Rfe8 {[%emt 0:01:41]} 22. Qf3 {[%emt 0:00:38]} a6 {[%emt 0:01:19]} 23. Nd2 {[%emt 0:02:44]} Rd3 {[%emt 0:08:15]} 24. Ne4 {[%emt 0:00:59]} Rxb3 {[%emt 0:00:17]} 25. Nxf6+ {[%emt 0:01:57]} gxf6 {[%emt 0:02:34]} 26. Qxf6 {[%emt 0:04:53]} Qe5 {[%emt 0:01:03]} 27. Qh6 {[%emt 0:00:31]} Rb2 {[%emt 0:01:19]} 28. Kg1 {[%emt 0:00:33]} Qe6 {[%emt 0:04:52]} 29. Qf4 {[%emt 0:02:04]} Rb4 {[%emt 0:01:35]} 30. Qc7 {[%emt 0:00:26]} Rc8 {[%emt 0:05:06]} 31. Rd8+ {[%emt 0:03:15]} Rxd8 {[%emt 0:00:17]} 32. Qxd8+ {[%emt 0:00:05]} Kg7 {[%emt 0:00:07]} 33. a5 {[%emt 0:00:41]} Qf6 {[%emt 0:01:58]} 34. Qc8 {[%emt 0:01:23]} bxa5 {[%emt 0:07:38]} 35. Qxc5 {[%emt 0:00:23]} Rb5 {[%emt 0:00:13]} 36. Qa3 {[%emt 0:05:37]} Qb6 {[%emt 0:02:23]} 37. Qa1+ {[%emt 0:00:24]} Kg6 {[%emt 0:02:13]} 38. Rd1 {[%emt 0:02:02]} Rb2 {[%emt 0:02:34]} 39. Qa3 {[%emt 0:00:59]} Qb4 {[%emt 0:00:56]} 40. Qd3+ {[%emt 0:00:22]} Kg7 {[%emt 0:00:46]} 41. Qf5 {[%emt 0:01:17]} h6 {[%emt 0:09:06]} 42. Rd7 {[%emt 0:03:27]} Rb1+ {[%emt 0:00:15]} 43. Kg2 {[%emt 0:00:12]} Qc4 {[%emt 0:01:00]} 44. Qe5+ {[%emt 0:00:59]} Kh7 {[%emt 0:00:26]} 45. Rd8 {[%emt 0:01:41]} Qc6+ {[%emt 0:02:26]} 46. e4 {[%emt 0:00:41]} 1-0

[Event "30th Abu Dhabi Festival A-Open 2024"]
[Site "Abu Dhabi"]
[Date "2024.08.15"]
[Round "1.8"]
[White "Tabada, Jobannie C."]
[Black "Chen, Jun-Wei"]
[Result "0-1"]
[ECO "B23"]
[WhiteElo "2246"]
[BlackElo "1818"]
[Annotator "ChessBase"]
[PlyCount "84"]
[EventDate "2024.08.15"]
[EventType "swiss"]
[EventCountry "UAE"]
[SourceTitle "playchess.com"]
[Source "ChessBase"]
[SourceQuality "1"]
[TimeControl "5400+30"]

1. e4 {[%emt 0:00:11]} c5 {[%emt 0:00:22]} 2. Nc3 {[%emt 0:00:08]} e6 {[%emt 0:00:33]} 3. f4 {[%emt 0:00:15]} d5 {[%emt 0:00:42]} 4. d3 {[%emt 0:00:20]} Be7 {[%emt 0:01:35]} 5. Nf3 {[%emt 0:00:21]} dxe4 {[%emt 0:02:25]} 6. dxe4 {[%emt 0:00:47]} Qxd1+ {[%emt 0:02:21]} 7. Nxd1 {[%emt 0:00:40]} Nf6 {[%emt 0:01:33]} 8. Nc3 {[%emt 0:00:06]} Nc6 {[%emt 0:00:50]} 9. Be3 {[%emt 0:00:22]} O-O {[%emt 0:02:16]} 10. O-O-O {[%emt 0:00:33]} b6 {[%emt 0:04:52]} 11. h3 {[%emt 0:00:52]} Bb7 {[%emt 0:02:54]} 12. e5 {[%emt 0:09:58]} Nd5 {[%emt 0:01:09]} 13. Nxd5 {[%emt 0:01:40]} exd5 {[%emt 0:00:16]} 14. Rxd5 {[%emt 0:00:02]} Nb4 {[%emt 0:00:36]} 15. Rd1 {[%emt 0:08:43]} Nxa2+ {[%emt 0:01:37]} 16. Kb1 {[%emt 0:04:09]} Nb4 {[%emt 0:00:34]} 17. Be2 {[%emt 0:01:51]} Rfd8 {[%emt 0:03:11]} 18. Rhf1 {[%emt 0:09:13]} a5 {[%emt 0:04:04]} 19. g4 {[%emt 0:06:41]} Be4 {[%emt 0:03:50]} 20. Ne1 {[%emt 0:11:32]} f6 {[%emt 0:05:06]} 21. exf6 {[%emt 0:16:45]} Bxf6 {[%emt 0:01:40]} 22. g5 {[%emt 0:01:20]} Be7 {[%emt 0:02:39]} 23. f5 {[%emt 0:10:27]} Rxd1+ {[%emt 0:05:31]} 24. Bxd1 {[%emt 0:00:01]} Rf8 {[%emt 0:02:42]} 25. Bg4 {[%emt 0:00:30]} Bd6 {[%emt 0:01:48]} 26. Bd2 {[%emt 0:06:49]} Bg3 {[%emt 0:02:56]} 27. Bxb4 {[%emt 0:02:46]} cxb4 {[%emt 0:03:18]} 28. f6 {[%emt 0:04:15]} Kh8 {[%emt 0:08:25]} 29. Be6 {[%emt 0:01:16]} gxf6 {[%emt 0:05:06]} 30. gxf6 {[%emt 0:00:04]} h5 {[%emt 0:01:44]} 31. Nd3 {[%emt 0:01:15]} h4 {[%emt 0:00:33]} 32. f7 {[%emt 0:00:38]} Bg2 {[%emt 0:01:19]} 33. Rf5 {[%emt 0:00:32]} Kg7 {[%emt 0:02:20]} 34. Nf4 {[%emt 0:01:09]} Be4 {[%emt 0:01:34]} 35. Rg5+ {[%emt 0:00:14]} Kf6 {[%emt 0:00:29]} 36. Rg8 {[%emt 0:00:03]} Ke7 {[%emt 0:03:18]} 37. Rxf8 {[%emt 0:01:53]} Kxf8 {[%emt 0:00:08]} 38. Nd5 {[%emt 0:00:05]} b3 {[%emt 0:01:07]} 39. Nf6 {[%emt 0:01:00]} bxc2+ {[%emt 0:00:10]} 40. Ka2 {[%emt 0:00:05]} Bd6 {[%emt 0:00:26]} 41. Nxe4 {[%emt 0:00:54]} c1=Q {[%emt 0:00:32]} 42. Nxd6 {[%emt 0:00:15]} Qc6 {[%emt 0:22:59]} 0-1

[Event "30th Abu Dhabi Festival A-Open 2024"]
[Site "Abu Dhabi"]
[Date "2024.08.15"]
[Round "1.9"]
[White "Erfan Mohamad Firdaus"]
[Black "Md Imran"]
[Result "0-1"]
[ECO "D27"]
[WhiteElo "1813"]
[BlackElo "2225"]
[Annotator "ChessBase"]
[PlyCount "106"]
[EventDate "2024.08.15"]
[EventType "swiss"]
[EventCountry "UAE"]
[SourceTitle "playchess.com"]
[Source "ChessBase"]
[SourceQuality "1"]
[TimeControl "5400+30"]

1. d4 {[%emt 0:01:08]} d5 {[%emt 0:00:13]} 2. c4 {[%emt 0:00:09]} dxc4 {[%emt 0:00:01]} 3. Nf3 {[%emt 0:00:06]} a6 {[%emt 0:00:10]} 4. e3 {[%emt 0:00:30]} Nf6 {[%emt 0:00:30]} 5. Bxc4 {[%emt 0:00:30]} c5 {[%emt 0:00:30]} 6. a4 {[%emt 0:04:30]} e6 {[%emt 0:00:53]} 7. O-O {[%emt 0:01:24]} Nc6 {[%emt 0:02:40]} 8. dxc5 {[%emt 0:12:02]} Qxd1 {[%emt 0:05:58]} 9. Rxd1 {[%emt 0:00:02]} Bxc5 {[%emt 0:00:05]} 10. Nbd2 {[%emt 0:00:17]} Bd7 {[%emt 0:03:49]} 11. b3 {[%emt 0:06:07]} Rc8 {[%emt 0:00:33]} 12. Bb2 {[%emt 0:01:31]} Ke7 {[%emt 0:00:10]} 13. Rac1 {[%emt 0:03:58]} Bb4 {[%emt 0:03:37]} 14. e4 {[%emt 0:10:44]} Rhd8 {[%emt 0:02:58]} 15. Bc3 {[%emt 0:11:23]} Bxc3 {[%emt 0:03:10]} 16. Rxc3 {[%emt 0:00:09]} Nb4 {[%emt 0:00:06]} 17. Rcc1 {[%emt 0:05:49]} Bc6 {[%emt 0:03:40]} 18. e5 {[%emt 0:01:54]} Nd7 {[%emt 0:00:15]} 19. Bf1 {[%emt 0:06:05]} Bd5 {[%emt 0:00:56]} 20. Bc4 {[%emt 0:01:37]} Bc6 {[%emt 0:01:30]} 21. Bf1 {[%emt 0:00:47]} Na2 {[%emt 0:00:33]} 22. Ra1 {[%emt 0:01:25]} Nc3 {[%emt 0:00:24]} 23. Rdc1 {[%emt 0:01:40]} Bd5 {[%emt 0:00:04]} 24. Bc4 {[%emt 0:01:31]} Bxf3 {[%emt 0:00:22]} 25. Rxc3 {[%emt 0:00:33]} Bg4 {[%emt 0:00:47]} 26. Re3 {[%emt 0:02:34]} Nxe5 {[%emt 0:00:10]} 27. Rxe5 {[%emt 0:01:07]} Rxd2 {[%emt 0:00:02]} 28. f3 {[%emt 0:01:06]} Bf5 {[%emt 0:00:24]} 29. Rae1 {[%emt 0:00:14]} Kd6 {[%emt 0:01:10]} 30. R5e3 {[%emt 0:04:37]} h5 {[%emt 0:00:16]} 31. R1e2 {[%emt 0:01:46]} Rxe2 {[%emt 0:00:05]} 32. Rxe2 {[%emt 0:00:21]} Kc5 {[%emt 0:00:31]} 33. Rd2 {[%emt 0:00:41]} Rc7 {[%emt 0:00:07]} 34. Kf2 {[%emt 0:00:43]} Kb4 {[%emt 0:00:11]} 35. Rd4 {[%emt 0:00:27]} Kc3 {[%emt 0:00:29]} 36. Rd6 {[%emt 0:02:05]} Kb4 {[%emt 0:01:47]} 37. Rd4 {[%emt 0:01:39]} Kc5 {[%emt 0:01:37]} 38. Ke3 {[%emt 0:00:14]} b5 {[%emt 0:00:31]} 39. b4+ {[%emt 0:06:16]} Kc6 {[%emt 0:00:24]} 40. axb5+ {[%emt 0:01:05]} axb5 {[%emt 0:00:02]} 41. Bb3 {[%emt 0:05:52]} Ra7 {[%emt 0:01:51]} 42. Rd1 {[%emt 0:00:40]} Ra3 {[%emt 0:00:13]} 43. Rc1+ {[%emt 0:00:34]} Kd6 {[%emt 0:00:24]} 44. Rc3 {[%emt 0:04:38]} Bc2 {[%emt 0:00:09]} 45. Rxc2 {[%emt 0:00:00]} Rxb3+ {[%emt 0:00:01]} 46. Kf4 {[%emt 0:01:00]} f6 {[%emt 1:09:12]} 47. Rd2+ {[%emt 0:00:00]} Ke7 {[%emt 0:00:00]} 48. g4 {[%emt 0:00:00]} Rxb4+ {[%emt 0:00:00]} 49. Kg3 {[%emt 0:00:00]} hxg4 {[%emt 0:00:00]} 50. fxg4 {[%emt 0:00:00]} g5 {[%emt 0:00:00]} 51. Rd3 {[%emt 0:00:00]} Rc4 {[%emt 0:00:00]} 52. h4 {[%emt 0:00:00]} gxh4+ {[%emt 0:00:00]} 53. Kxh4 {[%emt 0:00:00]} f5 {[%emt 0:00:00]} 0-1

[Event "30th Abu Dhabi Festival A-Open 2024"]
[Site "Abu Dhabi"]
[Date "2024.08.15"]
[Round "1.10"]
[White "Kuandykuly, Danis"]
[Black "Shubh Atha"]
[Result "1-0"]
[ECO "B04"]
[WhiteElo "2224"]
[BlackElo "1813"]
[Annotator "RC"]
[PlyCount "69"]
[EventDate "2024.08.15"]
[EventType "swiss"]
[EventCountry "UAE"]
[SourceTitle "playchess.com"]
[Source "ChessBase"]
[SourceQuality "1"]
[TimeControl "5400+30"]

1. e4 {[%emt 0:00:04]} Nf6 {[%emt 0:01:45]} 2. e5 {[%emt 0:01:01]} Nd5 {[%emt 0:00:01]} 3. d4 {[%emt 0:00:09]} d6 {[%emt 0:00:05]} 4. Nf3 {[%emt 0:00:05]} dxe5 {[%emt 1:30:39]} 5. c4 {[%emt 0:00:38]} Nb6 {[%emt 0:00:00]} 6. Nxe5 {[%emt 0:00:09]} g6 {[%emt 0:00:00]} 7. Nc3 {[%emt 0:01:05]} Bg7 {[%emt 0:00:00]} 8. Be3 {[%emt 0:01:20]} c5 {[%emt 0:00:00]} 9. Qd2 {[%emt 0:04:30]} Bxe5 {[%emt 0:00:00]} 10. dxe5 {[%emt 0:00:15]} Qxd2+ {[%emt 0:00:00]} 11. Kxd2 {[%emt 0:00:17]} Na6 {[%emt 0:00:00]} 12. Ne4 {[%emt 0:22:36]} Be6 {[%emt 0:00:00]} 13. b3 {[%emt 0:00:39]} Rc8 {[%emt 0:00:00]} 14. Be2 {[%emt 0:02:42]} O-O {[%emt 0:00:00]} 15. Kc3 {[%emt 0:01:14]} Nd7 {[%emt 0:00:00]} 16. f4 {[%emt 0:01:35]} Bf5 {[%emt 0:00:00]} 17. Ng3 {[%emt 0:01:24]} Nc7 {[%emt 0:00:00]} 18. Rhd1 {[%emt 0:02:40]} Rcd8 {[%emt 0:00:00]} 19. Rd2 {[%emt 0:01:51]} Be6 {[%emt 0:00:00]} 20. Rad1 {[%emt 0:03:11]} b6 {[%emt 0:00:00]} 21. Bf3 {[%emt 0:01:34]} Na6 {[%emt 0:00:00]} 22. Ne4 {[%emt 0:06:01]} Nab8 {[%emt 0:00:00]} 23. Ng5 {[%emt 0:01:39]} Kg7 {[%emt 0:00:00]} 24. Nxe6+ {[%emt 0:01:14]} fxe6 {[%emt 0:00:00]} 25. Bg4 {[%emt 0:00:39]} Kf7 {[%emt 0:00:00]} 26. a3 {[%emt 0:00:21]} a5 {[%emt 0:00:00]} 27. Bf3 {[%emt 0:00:49]} h5 {[%emt 0:00:00]} 28. Bb7 {[%emt 0:00:17]} Rg8 {[%emt 0:00:00]} 29. b4 {[%emt 0:01:24]} axb4+ {[%emt 0:00:00]} 30. axb4 {[%emt 0:00:08]} cxb4+ {[%emt 0:00:00]} 31. Kxb4 {[%emt 0:00:21]} Rge8 {[%emt 0:00:00]} 32. Bxb6 {[%emt 0:01:19]} Nxb6 {[%emt 0:00:00]} 33. Rxd8 {[%emt 0:00:06]} Rxd8 {[%emt 0:00:00]} 34. Rxd8 {[%emt 0:00:05]} N6d7 {[%emt 0:00:00]} 35. Kb5 {[%emt 0:44:38]} 1-0